Cogmind - Beta 15 @@@ ROGUE MODE // 2025.06.12 @ 07:03:59 Player: Darcyisverycute Result: Escaped! Performance ------------- Evolutions (9) 4500 Regions Visited (20) 4000 Robots Destroyed (67) 335 Value Destroyed (1051) 1051 Prototype IDs (41) 820 Alien Tech Used (1) 200 Bonus (2918) 2918 TOTAL SCORE: 13824 Bonus ------- Follower Combat Kills 364 Entered DSFs 500 Aligned with FarCom 300 Met Zhirov 300 Win 3000 Friendly Fire -1546 Cogmind --------- Core Integrity 544/1600 Matter 176/300 Energy 99/100 System Corruption 0% Temperature Cool (0) Movement Core (250) Ox4 Location To Epsilon Eridani Parts ------- > --- POWER (1) -------- (None) > --- PROPULSION (2) --- (None) > --- UTILITY (20) ----- Advanced Signal Interpreter Terrain Scan Processor Terrain Scan Processor Terrain Scan Processor Terrain Scan Processor Experimental Target Analyzer Improved Armor Integrity Analyzer Hacking Suite Hacking Suite Authchip [R/Combat] Authchip [Device] > --- WEAPON (2) ------- Enhanced Hardcell Cannon > --- INVENTORY (5) ---- Advanced Energy Well (500) Dimensional Node Initializer Transdimensional Reconstructor Linear Accelerator Peak State ------------ > --- POWER ------------ Improved Quantum Reactor > --- PROPULSION ------- (None) > --- UTILITY ---------- Enhanced Optical Array Advanced Signal Interpreter Long-range Terrain Scanner Terrain Scan Processor Terrain Scan Processor Terrain Scan Processor Terrain Scan Processor Improved Armor Integrity Analyzer Graphene Brace Hacking Suite Hacking Suite Hacking Suite Authchip [R/Combat] Authchip [R/Combat] Authchip [R/Combat] Authchip [Device] Authchip [Device] Authchip [Weapon] > --- WEAPON ----------- Phasing Sabre > --- INVENTORY -------- Advanced Energy Well Dimensional Node Initializer Transdimensional Reconstructor Linear Accelerator [Rating: 92] Favorites ----------- Power Light Fission Core Engine Light Ion Engine Power Core Light Fission Core Reactor Light Antimatter Reactor Propulsion None Utility Terrain Scan Processor Device Advanced Weight Redist. System Processor Terrain Scan Processor Hackware Improved System Shield Protection Experimental Power Shielding Weapon Phasing Sabre Energy Gun Medium Laser Energy Cannon Neutron Cannon Ballistic Gun Autogun Ballistic Cannon Linear Accelerator Launcher Missile Launcher Special Weapon Stasis Beam Impact Weapon Hammer Slashing Weapon Phasing Sabre Build | -11 -10 -10 -9 -9 -9 -8 -8 -7 -6 -5 -5 -4 -4 -4 -4 -3 -3 -2 -2 -1 ------- Run | Yrd Mat Min Mat Min Exi Min Mat Fac Fac Fac Ext Fac Upp Upp Zhi Pro Res Res DSF Acc Slots Evolved 18 | . . . 2 . . . 2 2 2 2 . 2 . . . . 2 2 . 2 Power . | . . . . . . . . . . . . . . . . . . . . . Propulsion . | . . . . . . . . . . . . . . . . . . . . . Utility 18 | . . . 2 . . . 2 2 2 2 . 2 . . . . 2 2 . 2 Weapon . | . . . . . . . . . . . . . . . . . . . . . Parts Attached 94 | 3 2 4 3 . 1 1 9 2 8 9 7 6 5 3 6 2 6 14 . 3 Power 11 | . . 2 . . . . 1 . 1 . 2 . 2 . 2 . . 1 . . Engine 5 | . . 2 . . . . 1 . . . 2 . . . . . . . . . Core 3 | . . . . . . . . . 1 . . . 1 . 1 . . . . . Reactor 3 | . . . . . . . . . . . . . 1 . 1 . . 1 . . Propulsion . | . . . . . . . . . . . . . . . . . . . . . Treads . | . . . . . . . . . . . . . . . . . . . . . Leg . | . . . . . . . . . . . . . . . . . . . . . Wheel . | . . . . . . . . . . . . . . . . . . . . . Hover . | . . . . . . . . . . . . . . . . . . . . . Flight . | . . . . . . . . . . . . . . . . . . . . . Utility 60 | . 2 1 1 . . 1 4 2 7 7 3 6 1 1 3 1 6 12 . 2 Device 15 | . 1 . 1 . . . 1 . 3 1 1 2 . 1 1 . 2 1 . . Storage . | . . . . . . . . . . . . . . . . . . . . . Processor 28 | . 1 1 . . . 1 2 2 4 4 1 4 1 . 1 1 2 2 . 1 Hackware 15 | . . . . . . . . . . 2 1 . . . . . 2 9 . 1 Protection 2 | . . . . . . . 1 . . . . . . . 1 . . . . . Artifact . | . . . . . . . . . . . . . . . . . . . . . Weapon 23 | 3 . 1 2 . 1 . 4 . . 2 2 . 2 2 1 1 . 1 . 1 Energy Gun 2 | 2 . . . . . . . . . . . . . . . . . . . . Energy Cannon 1 | . . . . . . . . . . . . . . . . 1 . . . . Ballistic Gun 4 | 1 . . 1 . . . . . . . . . . 2 . . . . . . Ballistic Cannon 2 | . . . . . . . . . . . . . . . . . . 1 . 1 Launcher 6 | . . 1 1 . . . 1 . . 1 1 . 1 . . . . . . . Special Weapon 1 | . . . . . . . . . . . . . . . 1 . . . . . Impact Weapon 3 | . . . . . 1 . 2 . . . . . . . . . . . . . Slashing Weapon 4 | . . . . . . . 1 . . 1 1 . 1 . . . . . . . Piercing Weapon . | . . . . . . . . . . . . . . . . . . . . . Special Melee Weapon . | . . . . . . . . . . . . . . . . . . . . . Unidentified Prototypes 8 | . . . . . . . . . . 1 . . . . 4 1 . 2 . . Parts Lost 45 | . . . 2 . . 1 4 . . 3 8 . 4 2 . 5 6 . 2 8 Power 5 | . . . . . . 1 1 . . . 1 . 2 . . . . . . . Propulsion . | . . . . . . . . . . . . . . . . . . . . . Utility 32 | . . . . . . . 2 . . 1 6 . 2 1 . 5 6 . 2 7 Weapon 8 | . . . 2 . . . 1 . . 2 1 . . 1 . . . . . 1 Highest Loss Streak 8 | . . . 2 . . 1 3 . . 1 8 . 3 2 . 5 5 . 2 6 To Critical Strikes . | . . . . . . . . . . . . . . . . . . . . . Average Backups 3 | . 3 5 4 4 3 2 1 1 4 4 3 4 4 4 4 4 4 4 4 4 Power . | . . . . . . . . . . . . . . . . . . . . . Propulsion . | . . . . . . . . . . . . . . . . . . . . . Utility 1 | . 1 2 1 1 1 1 1 1 2 1 1 1 1 2 1 1 1 1 1 1 Weapon 1 | . 2 3 3 3 2 1 . . 1 2 1 1 1 1 . 1 1 1 1 1 Tool/Special . | . . . . . . . . . . . . . . . . . . . . . Unused Backups 11 | . . 1 . . . . . . 1 1 . . 1 . 1 2 1 . . 3 Power 1 | . . . . . . . . . . . . . . . . . 1 . . . Propulsion . | . . . . . . . . . . . . . . . . . . . . . Utility 4 | . . . . . . . . . 1 1 . . . . 1 . . . . 1 Weapon 2 | . . 1 . . . . . . . . . . . . . 1 . . . . Tool/Special 4 | . . . . . . . . . . . . . 1 . . 1 . . . 2 Average Slot Usage (%) 67 | . 34 60 62 55 60 65 64 45 60 76 67 68 75 73 84 78 45 54 80 67 Engine 1 | . . 3 11 11 11 1 4 . . . 3 5 1 . . . . . . . Device 12 | . 1 14 20 22 22 22 14 7 10 11 10 13 11 11 15 20 5 6 6 7 Processor 33 | . 5 14 11 11 11 20 23 30 40 46 35 32 43 42 44 41 29 28 34 30 Hackware 7 | . . . . . . . . . . 9 11 10 10 5 5 5 6 15 34 27 Protection 1 | . . . . . . . 6 . . . . . . . 3 4 . . . . Ballistic Gun 2 | . 14 14 6 11 11 11 2 . . . . . . 5 1 . . . . . Impact Weapon 1 | . . . . . 5 11 6 7 6 . . . . . . . . . . . Slashing Weapon 2 | . . . . . . . 5 . . 4 3 5 2 2 5 1 2 2 4 . Peak Build Rating 92 | 2 5 6 7 7 10 10 19 18 38 57 66 53 60 60 78 71 49 92 87 84 Average Rating 42 | 1 2 5 6 7 8 9 15 14 27 50 43 45 52 50 69 65 40 56 81 74 On Entrance 30 | . 2 5 6 7 7 10 10 9 18 34 49 32 53 46 60 68 38 29 88 72 Naked Turns . | . . . . . . . . . . . . . . . . . . . . . Heaviest Build 24 | 4 3 9 10 7 9 9 13 2 9 11 10 11 19 22 24 16 7 7 7 15 Greatest Support 12 | 3 3 9 9 9 9 9 9 3 9 12 12 12 12 12 12 12 3 3 3 3 Greatest Overweight (x) 4 | 1 . 1 1 . . 1 2 . . 1 1 . 2 2 1 3 2 2 2 4 Average Overweight (x) . | . . . . . . . . . . . . . . . . . . . 1 . Largest Inventory Capacity 5 | 5 5 5 5 5 5 5 5 5 5 5 5 5 5 5 5 5 5 5 5 5 Average Capacity 5 | 5 5 5 5 5 5 5 5 5 5 5 5 5 5 5 5 5 5 5 5 5 Most Carried 5 | 2 5 5 5 4 5 5 5 3 5 5 5 4 5 5 5 5 5 5 5 5 Average Carried 4 | . 4 4 4 4 4 5 4 2 4 4 3 4 4 4 4 4 4 4 4 4 Final Capacity 5 | 5 5 5 5 5 5 5 5 5 5 5 5 5 5 5 5 5 5 5 5 5 Final Carried 5 | 1 5 5 4 4 5 5 2 3 5 5 4 4 5 5 5 4 5 5 5 4 Class Distribution -------------------- 25% | Mutant 20% | Hacker-Scout 14% | Scavenger-Assassin 9% | Scavenger-Scout 7% | Hacker-Assassin 7% | Hacker-Mutant 6% | Scavenger-Mutant 4% | Scout Dominant Class ---------------- Mutant | -10/Materials Mutant | -10/Mines Mutant | -9/Materials Mutant | -9/Mines Mutant | -9/Exiles Mutant | -8/Mines Mutant | -8/Materials Mutant | -7/Factory Mutant | -6/Factory Hacker-Scout | -5/Factory Hacker-Scout | -5/Extension Hacker-Scout | -4/Factory Scavenger-Mutant | -4/Upper Caves Scavenger-Assassin | -4/Upper Caves Scavenger-Assassin | -4/Zhirov Scavenger-Scout | -3/Proximity Caves Hacker-Mutant | -3/Research Hacker-Assassin | -2/Research Hacker-Mutant | -2/DSF Hacker-Scout | -1/Access Resources | -11 -10 -10 -9 -9 -9 -8 -8 -7 -6 -5 -5 -4 -4 -4 -4 -3 -3 -2 -2 -1 ----------- Run | Yrd Mat Min Mat Min Exi Min Mat Fac Fac Fac Ext Fac Upp Upp Zhi Pro Res Res DSF Acc Matter Collected 2102 | 219 19 116 34 . 147 10 38 . 310 166 177 35 145 142 120 50 140 104 . 130 Remotely . | . . . . . . . . . . . . . . . . . . . . . Salvage Created 2577 | 28 82 32 97 . . 25 102 . 414 279 158 85 108 247 444 232 106 104 . 34 Parts 139 | 3 4 4 11 . . 4 12 . 9 20 9 10 3 11 13 4 14 2 . 6 Haulers Intercepted 3 | . 1 . . . . . . . 1 . . . . . . . . 1 . . Recyclers Shooed 3 | . 1 . . . . . . . . 2 . . . . . . . . . . Parts Field Recycled . | . . . . . . . . . . . . . . . . . . . . . Retrieved Matter . | . . . . . . . . . . . . . . . . . . . . . Parts Self-Destructed 14 | . . . . . . . . . . . . . 7 4 2 1 . . . . Prevented . | . . . . . . . . . . . . . . . . . . . . . Kills | -11 -10 -10 -9 -9 -9 -8 -8 -7 -6 -5 -5 -4 -4 -4 -4 -3 -3 -2 -2 -1 ------- Run | Yrd Mat Min Mat Min Exi Min Mat Fac Fac Fac Ext Fac Upp Upp Zhi Pro Res Res DSF Acc Combat Hostiles Destroyed 26 | . 1 2 7 . . . 4 . . 4 2 . 1 5 . . . . . . Guns 2 | . 1 . . . . . . . . . . . . 1 . . . . . . AOE 23 | . . 2 7 . . . 3 . . 4 2 . 1 4 . . . . . . Classes Destroyed 13 | 1 2 2 1 . . . 1 . 1 1 2 . 2 . . . . . . . Worker 8 | . . 1 . . . . 1 . 4 2 . . . . . . . . . . Builder 20 | . . . . . . . 1 . 6 . 2 4 . . . . 5 . . 2 Tunneler 3 | 1 . . . . . 2 . . . . . . . . . . . . . . Hauler 3 | . 1 . . . . . . . 1 . . . . . . . . 1 . . Recycler 2 | . . . . . . . . . 1 1 . . . . . . . . . . Operator 2 | . . . . . . . . . . 1 . . . . . . 1 . . . Watcher 1 | . . . . . . . . . . . 1 . . . . . . . . . Swarmer 18 | . . 2 4 . . . 3 . . 4 . . . 5 . . . . . . Grunt 4 | . 1 . 2 . . . . . . . 1 . . . . . . . . . Brawler 1 | . . . . . . . . . . . 1 . . . . . . . . . Duelist 1 | . . . . . . . . . . . . . 1 . . . . . . . Sentry 2 | . . . 1 . . . 1 . . . . . . . . . . . . . Enhanced Grunt 2 | . . . . . . . . . . . . . . . 2 . . . . . Packrat 2 | . . . . . . . . . . . . . . 2 . . . . . . Samaritan 1 | . . . . . . . . . . . . . 1 . . . . . . . Best Kill Streak 6 | 1 1 2 6 . . 1 3 . 6 4 2 3 1 4 . . 3 1 . 2 Combat Bots Only 6 | . 1 2 6 . . . 3 . . 4 2 . 1 4 . . . . . . Max Kills in Single Turn 4 | 1 1 1 2 . . 1 2 . 1 4 1 1 1 2 1 . 1 1 . 1 Gunslinging . | . . . . . . . . . . . . . . . . . . . . . Exploded 4 | . . 1 2 . . . 2 . . 4 1 . 1 2 . . . . . . Melee . | . . . . . . . . . . . . . . . . . . . . . Uniques/NPCs Destroyed . | . . . . . . . . . . . . . . . . . . . . . Combat | -11 -10 -10 -9 -9 -9 -8 -8 -7 -6 -5 -5 -4 -4 -4 -4 -3 -3 -2 -2 -1 -------- Run | Yrd Mat Min Mat Min Exi Min Mat Fac Fac Fac Ext Fac Upp Upp Zhi Pro Res Res DSF Acc Hostile Shots Fired 506 | . 6 9 25 . . 3 67 . . 41 63 2 16 17 . 42 80 . 5 130 Missed 189 | . 3 4 8 . . 1 26 . . 13 27 . 7 6 . 17 37 . 1 39 Hits 317 | . 3 5 17 . . 2 41 . . 28 36 2 9 11 . 25 43 . 4 91 Melee 9 | . . . . . . . 6 . . 2 . . . 1 . . . . . . Projectile 308 | . 3 5 17 . . 2 35 . . 26 36 2 9 10 . 25 43 . 4 91 AOE 1 | . . . . . . . 1 . . . . . . . . . . . . . Critical Strikes 18 | . . . 1 . . . 4 . . . 2 . 1 . . 1 1 . 1 7 Actively Blocked 10 | . . . . . . . . . . . . . . . . 1 1 . 1 7 Damage Taken 6096 | . 65 106 231 . . 30 745 . . 665 714 40 152 292 . 537 768 49 255 1447 Core 3974 | . 35 46 68 . . 15 445 . . 484 493 18 18 137 . 351 541 49 218 1056 Absorbed by Shields 66 | . . . . . . . . . . . 66 . . . . . . . . . Core Remaining (%) 63 | 100 . 67 . . . 79 19 100 100 . 2 . . . . 54 58 . 81 34 Volleys Fired 63 | 2 12 6 9 . . . 3 . . 2 3 . 5 7 . . . 3 . 11 Largest 2 | 2 2 1 2 . . . 1 . . 1 1 . 1 2 . . . 1 . 1 Hottest 70 | 70 70 30 60 . . . 33 . . 36 46 . 36 46 . . . 54 . 58 Shots Fired 86 | 4 24 6 14 . . . 3 . . 2 3 . 5 11 . . . 3 . 11 Gun 38 | 4 24 . 1 . . . . . . . . . . 9 . . . . . . Cannon 14 | . . . . . . . . . . . . . . . . . . 3 . 11 Launcher 34 | . . 6 13 . . . 3 . . 2 3 . 5 2 . . . . . . Special . | . . . . . . . . . . . . . . . . . . . . . Kinetic 38 | 2 12 . 1 . . . . . . . . . . 9 . . . 3 . 11 Thermal 14 | 2 12 . . . . . . . . . . . . . . . . . . . Explosive 34 | . . 6 13 . . . 3 . . 2 3 . 5 2 . . . . . . Electromagnetic . | . . . . . . . . . . . . . . . . . . . . . Robot Hit Streak 4 | 3 4 4 . . . . 2 . . . . . 3 3 . . . . . . Robot Miss Streak 3 | . 1 2 3 . . . . . . 1 . . . 1 . . . . . . Penetration Max . | . . . . . . . . . . . . . . . . . . . . . Secondary Targets . | . . . . . . . . . . . . . . . . . . . . . Shots Hit Robots 117 | 3 17 1 . . . 4 13 . 15 10 7 4 4 7 13 6 8 3 . 2 Core Hits 77 | 2 5 4 13 . . 1 5 . 2 8 8 2 5 8 5 3 3 1 . 2 Critical Kills . | . . . . . . . . . . . . . . . . . . . . . Critical Parts Destroyed 4 | . . . . . . . 2 . 2 . . . . . . . . . . . Critical Strikes 6 | . . . . . . . 3 . 2 . . . . . . . 1 . . . Smash 5 | . . . . . . . 3 . 2 . . . . . . . . . . . Sever 1 | . . . . . . . . . . . . . . . . . 1 . . . Melee Attacks 188 | . . . . . . 8 28 7 21 27 11 12 1 5 14 13 26 8 . 7 Impact 49 | . . . . . . 8 11 7 21 2 . . . . . . . . . . Slashing 139 | . . . . . . . 17 . . 25 11 12 1 5 14 13 26 8 . 7 Piercing . | . . . . . . . . . . . . . . . . . . . . . Sneak Attacks 55 | . . . . . . 4 4 . 13 6 4 4 1 2 7 . 7 1 . 2 Combat Hostiles . | . . . . . . . . . . . . . . . . . . . . . Follow-up Attacks . | . . . . . . . . . . . . . . . . . . . . . Damage Inflicted 8666 | 27 175 275 397 . . 257 537 . 1030 1226 964 290 326 490 1177 465 688 170 . 172 Guns 279 | 27 175 . . . . . . . . . . . . 77 . . . . . . Cannons . | . . . . . . . . . . . . . . . . . . . . . Explosions 2136 | . . 275 397 . . . 179 . . 311 508 . 216 250 . . . . . . Melee 6245 | . . . . . . 257 358 . 1030 909 456 290 110 163 1177 465 688 170 . 172 Ramming 6 | . . . . . . . . . . 6 . . . . . . . . . . Kinetic 166 | 15 74 . . . . . . . . . . . . 77 . . . . . . Thermal 113 | 12 101 . . . . . . . . . . . . . . . . . . . Explosive 2136 | . . 275 397 . . . 179 . . 311 508 . 216 250 . . . . . . Electromagnetic . | . . . . . . . . . . . . . . . . . . . . . Impact 1461 | . . . . . . 257 174 . 1030 . . . . . . . . . . . Slashing 4784 | . . . . . . . 184 . . 909 456 290 110 163 1177 465 688 170 . 172 Piercing . | . . . . . . . . . . . . . . . . . . . . . Highest Corruption 5 | . 1 1 . . . . . 1 . 2 5 . . . . . 1 1 3 . Average Corruption 2 | . 1 1 . . . . . 1 . 2 2 . . . . . 1 1 1 . Corruption Purged . | . . . . . . . . . . . . . . . . . . . . . Corruption Blocked 5 | . . . . . . . . . . . . . . . . 5 . . . . Effects 14 | . 1 . . . . . . . . . 12 . . . . . . 1 . . Message Errors 2 | . . . . . . . . . . . 2 . . . . . . . . . Matter Fused 9 | . . . . . . . . . . . 8 . . . . . . 1 . . Heat Flow Errors 2 | . 1 . . . . . . . . . 1 . . . . . . . . . Data Loss (minor) 1 | . . . . . . . . . . . 1 . . . . . . . . . Overload Shots . | . . . . . . . . . . . . . . . . . . . . . Overflow Damage 2007 | . . 4 7 . . 123 65 . 473 313 211 66 . 166 300 61 218 . . . Projectiles . | . . . . . . . . . . . . . . . . . . . . . Explosions 54 | . . 4 7 . . . 12 . . 6 9 . . 16 . . . . . . Melee 1953 | . . . . . . 123 53 . 473 307 202 66 . 150 300 61 218 . . . Knockbacks 3 | . . . . . . 1 . . 2 . . . . . . . . . . . Impact 3 | . . . . . . 1 . . 2 . . . . . . . . . . . Kinetic . | . . . . . . . . . . . . . . . . . . . . . Secondary . | . . . . . . . . . . . . . . . . . . . . . Self-Inflicted Damage 213 | . . 62 . . . . . . . 47 . . . 104 . . . . . . Shots 5 | . . 2 . . . . . . . 1 . . . 2 . . . . . . Rammed 1 | . . . . . . . . . . 1 . . . . . . . . . . Targets Rammed 1 | . . . . . . . . . . 1 . . . . . . . . . . Kicked . | . . . . . . . . . . . . . . . . . . . . . Crushed . | . . . . . . . . . . . . . . . . . . . . . Highest Temperature 128 | 40 128 . 6 . . . 9 . . . 117 . . . . . . . . 6 Average Temperature 28 | 23 34 . 4 . . . 5 . . . 64 . . . . . . . . 4 Received Heat Transfer 729 | . 18 . 84 . . 18 198 . . 99 156 9 21 18 . 99 9 . . . Siege Activations . | . . . . . . . . . . . . . . . . . . . . . Martial Activations . | . . . . . . . . . . . . . . . . . . . . . Shielding Activations . | . . . . . . . . . . . . . . . . . . . . . Robots Disrupted . | . . . . . . . . . . . . . . . . . . . . . Combat Hostiles . | . . . . . . . . . . . . . . . . . . . . . Robots Corrupted 6 | . . . . . . . 1 . 5 . . . . . . . . . . . Combat Hostiles 1 | . . . . . . . 1 . . . . . . . . . . . . . Parts Fried 23 | . . . . . . 1 2 . 20 . . . . . . . . . . . Impact Corruptions 21 | . . . . . . 4 3 . 14 . . . . . . . . . . . Robots Melted . | . . . . . . . . . . . . . . . . . . . . . Combat Hostiles . | . . . . . . . . . . . . . . . . . . . . . Parts Melted 1 | . 1 . . . . . . . . . . . . . . . . . . . Heat Transferred 333 | 37 296 . . . . . . . . . . . . . . . . . . . Parts Sabotaged . | . . . . . . . . . . . . . . . . . . . . . Parts Stolen . | . . . . . . . . . . . . . . . . . . . . . Parts Stripped . | . . . . . . . . . . . . . . . . . . . . . Power Chain Reactions . | . . . . . . . . . . . . . . . . . . . . . Alert | -11 -10 -10 -9 -9 -9 -8 -8 -7 -6 -5 -5 -4 -4 -4 -4 -3 -3 -2 -2 -1 ------- Run | Yrd Mat Min Mat Min Exi Min Mat Fac Fac Fac Ext Fac Upp Upp Zhi Pro Res Res DSF Acc Maximum Alert Level 2 | . . . 1 . . . . . . 1 2 1 . . . . 1 . . 1 Low Security (%) 77 | 100 100 100 64 100 . 100 100 100 100 80 75 . . . . . 10 100 100 99 Level 1 21 | . . . 35 . . . . . . 20 17 100 . . . . 89 . . . Level 2 1 | . . . . . . . . . . . 7 . . . . . . . . . Level 3 . | . . . . . . . . . . . . . . . . . . . . . Level 4 . | . . . . . . . . . . . . . . . . . . . . . Level 5 . | . . . . . . . . . . . . . . . . . . . . . High Security . | . . . . . . . . . . . . . . . . . . . . . Max Security . | . . . . . . . . . . . . . . . . . . . . . Peak Influence 436 | 5 54 84 227 74 . 40 158 15 35 240 436 308 . . . . 309 114 21 206 Initial 300 | . 3 15 26 74 . . . 5 . 9 78 209 . . . . 300 114 21 . Average 96 | 2 25 59 143 74 . 7 17 3 15 120 138 244 . . . . 248 75 20 29 Influence Increases 3514 | 5 91 102 266 . . 57 332 34 108 389 759 179 150 185 15 5 506 25 . 306 Destroy 0b10 Robot/C 780 | . 20 40 140 . . . 120 . . 80 260 . 20 100 . . . . . . Destroy 0b10 Robot/NC 220 | 5 5 5 . . . 10 10 . 60 20 20 20 . . 15 5 30 5 . 10 Destroy Leader 158 | . 2 10 30 . . . 30 . 2 10 52 . 10 10 . . . 2 . . Allied During Kill 33 | . . . . . . . 11 . . . 22 . . . . . . . . . Successful Hack 281 | . 19 . . . . . 14 16 41 26 71 42 . . . . 52 . . . Disable Machine 135 | . . . . . . . 30 15 . 15 45 15 . . . . . . . 15 Anti-Garrison Action 200 | . . . . . . . . . . . . . . . . . . . . 200 Destroy Structure 372 | . . 32 36 . . 2 42 3 5 58 94 12 . . . . 34 18 . 36 Advance Influence 300 | . . . . . . . . . . . . . . . . . 300 . . . Partial Spotted 60 | . . . 30 . . . 15 . . . . . . . . . 15 . . . Lose Combat Pursuer 975 | . 45 15 30 . . 45 60 . . 180 195 90 120 75 . . 75 . . 45 Influence Decreases 3368 | . 55 76 141 118 74 57 319 47 87 249 492 309 396 237 15 5 302 200 28 161 Entered New Map 804 | . 2 26 41 118 74 . . 8 . 12 83 219 111 11 . . . 90 8 1 Time Decay 1924 | . 53 50 80 . . 57 121 39 87 215 245 90 245 206 15 5 222 110 . 84 Lost Part 346 | . . . 20 . . . 8 . . 22 80 . 40 20 . . 60 . 20 76 Lost Ally 144 | . . . . . . . 40 . . . 84 . . . . . 20 . . . Purge Threat 150 | . . . . . . . 150 . . . . . . . . . . . . . Squads Dispatched 20 | . . . 2 . . . 3 2 . 3 3 1 . . . . 2 1 . 3 Investigation 6 | . . . . . . . . 1 . . 1 1 . . . . 1 . . 2 Extermination 4 | . . . . . . . . . . 1 . . . . . . 1 1 . 1 Reinforcement 10 | . . . 2 . . . 3 1 . 2 2 . . . . . . . . . Assault . | . . . . . . . . . . . . . . . . . . . . . Garrison . | . . . . . . . . . . . . . . . . . . . . . Intercept . | . . . . . . . . . . . . . . . . . . . . . Searches Triggered . | . . . . . . . . . . . . . . . . . . . . . Construction Impeded 2 | . . . . . . . 1 . . . 1 . . . . . . . . . Haulers Reinforced . | . . . . . . . . . . . . . . . . . . . . . Active Scanning Responses . | . . . . . . . . . . . . . . . . . . . . . Cargo Convoy Interrupts . | . . . . . . . . . . . . . . . . . . . . . Stealth | -11 -10 -10 -9 -9 -9 -8 -8 -7 -6 -5 -5 -4 -4 -4 -4 -3 -3 -2 -2 -1 --------- Run | Yrd Mat Min Mat Min Exi Min Mat Fac Fac Fac Ext Fac Upp Upp Zhi Pro Res Res DSF Acc Distress Signals 12 | . . . 3 . . . 3 . . . 1 1 . . . 2 1 . . 1 Communications Jammed . | . . . . . . . . . . . . . . . . . . . . . Distress Signals . | . . . . . . . . . . . . . . . . . . . . . Times Spotted 180 | . 6 3 21 . . 4 21 1 . 24 24 8 8 10 2 18 17 . 2 11 Peak Tracking Total 13 | . 3 3 12 . . 3 11 1 . 10 9 6 4 7 3 13 10 . 2 8 Tactical Retreats 32 | . 2 1 1 . . 1 2 . . 5 8 2 3 2 . 1 2 . . 2 Traps | -11 -10 -10 -9 -9 -9 -8 -8 -7 -6 -5 -5 -4 -4 -4 -4 -3 -3 -2 -2 -1 ------- Run | Yrd Mat Min Mat Min Exi Min Mat Fac Fac Fac Ext Fac Upp Upp Zhi Pro Res Res DSF Acc Traps Triggered 10 | . 1 . . . . . 1 . . 3 3 . . . . . . 1 1 . Indirectly . | . . . . . . . . . . . . . . . . . . . . . Trap Hack Attempts . | . . . . . . . . . . . . . . . . . . . . . Triggered . | . . . . . . . . . . . . . . . . . . . . . Disarmed . | . . . . . . . . . . . . . . . . . . . . . Reprogrammed . | . . . . . . . . . . . . . . . . . . . . . Reused . | . . . . . . . . . . . . . . . . . . . . . Traps Extracted . | . . . . . . . . . . . . . . . . . . . . . Installed . | . . . . . . . . . . . . . . . . . . . . . Triggered . | . . . . . . . . . . . . . . . . . . . . . Machines | -11 -10 -10 -9 -9 -9 -8 -8 -7 -6 -5 -5 -4 -4 -4 -4 -3 -3 -2 -2 -1 ---------- Run | Yrd Mat Min Mat Min Exi Min Mat Fac Fac Fac Ext Fac Upp Upp Zhi Pro Res Res DSF Acc Machines Disabled 12 | . . . . . . . 2 1 . 1 3 1 . 2 1 . . . . 1 Max in Single Turn 1 | . . . . . . . 1 1 . 1 . 1 . 1 1 . . . . 1 Garrison Access 3 | . . . . . . . . . . 1 . . . . . . 1 . . 1 Energy Cycler 3 | . . . . . . . . . . . 3 . . . . . . . . . Machines Repaired . | . . . . . . . . . . . . . . . . . . . . . Machines Dismantled . | . . . . . . . . . . . . . . . . . . . . . Machines Sabotaged . | . . . . . . . . . . . . . . . . . . . . . Overloaded Fab Kills . | . . . . . . . . . . . . . . . . . . . . . Hacking | -11 -10 -10 -9 -9 -9 -8 -8 -7 -6 -5 -5 -4 -4 -4 -4 -3 -3 -2 -2 -1 --------- Run | Yrd Mat Min Mat Min Exi Min Mat Fac Fac Fac Ext Fac Upp Upp Zhi Pro Res Res DSF Acc Machines Accessed 43 | . 4 . . . 2 . 2 2 2 4 9 3 . 1 4 . 7 1 . 2 Terminals 31 | . 4 . . . . . 2 1 2 3 9 3 . . . . 5 1 . 1 Fabricators . | . . . . . . . . . . . . . . . . . . . . . Repair Stations . | . . . . . . . . . . . . . . . . . . . . . Recycling Units . | . . . . . . . . . . . . . . . . . . . . . Scanalyzers . | . . . . . . . . . . . . . . . . . . . . . Garrison Access 5 | . . . . . . . . 1 . 1 . . . . . . 2 . . 1 Total Hacks 129 | . 10 . . . 2 . 8 5 4 8 32 22 . 1 17 . 16 1 . 3 Successful 66 | . 8 . . . 2 . 4 1 2 3 13 7 . 1 17 . 6 1 . 1 Failed 63 | . 2 . . . . . 4 4 2 5 19 15 . . . . 10 . . 2 Catastrophic 11 | . . . . . . . 1 2 . 1 1 5 . . . . 1 . . . Database Lockouts . | . . . . . . . . . . . . . . . . . . . . . Manual 52 | . 9 . . . 1 . 4 1 2 5 9 13 . . . . 7 . . 1 Terminals 102 | . 10 . . . . . 8 3 4 7 32 22 . . . . 13 1 . 2 Fabricators . | . . . . . . . . . . . . . . . . . . . . . Repair Stations . | . . . . . . . . . . . . . . . . . . . . . Recycling Units . | . . . . . . . . . . . . . . . . . . . . . Scanalyzers . | . . . . . . . . . . . . . . . . . . . . . Garrison Access 7 | . . . . . . . . 2 . 1 . . . . . . 3 . . 1 Terminal Hacks 40 | . 1 . . . 2 . 2 1 2 1 7 3 . 1 17 . 2 1 . . Record 7 | . . . . . 1 . . . . . . . . 1 5 . . . . . Part Schematic 4 | . . . . . . . . . . . . . . . 4 . . . . . Robot Analysis 5 | . . . . . . . 1 . . . . . . . 4 . . . . . Prototype ID Bank 4 | . . . . . . . . . . . . . . . 4 . . . . . Open Door 4 | . . . . . . . . . . . 4 . . . . . . . . . Open DSF 1 | . . . . . . . . . . . . . . . . . . 1 . . Branch Access Points 5 | . . . . . . . . 1 1 1 . 1 . . . . 1 . . . Terminal Index 1 | . . . . . . . . . 1 . . . . . . . . . . . Alert Level 1 | . . . . . . . . . . . . 1 . . . . . . . . Unreport Threat 1 | . . . . . . . 1 . . . . . . . . . . . . . Locate Traps 3 | . . . . . . . . . . . 3 . . . . . . . . . Zone Layout 3 | . 1 . . . . . . . . . . 1 . . . . 1 . . . Proto ID Catalog 1 | . . . . . 1 . . . . . . . . . . . . . . . Fabricator Hacks . | . . . . . . . . . . . . . . . . . . . . . Repair Station Hacks . | . . . . . . . . . . . . . . . . . . . . . Recycling Unit Hacks . | . . . . . . . . . . . . . . . . . . . . . Scanalyzer . | . . . . . . . . . . . . . . . . . . . . . Garrison Access Hacks 2 | . . . . . . . . . . 1 . . . . . . 1 . . . Seal Access 2 | . . . . . . . . . . 1 . . . . . . 1 . . . Unauthorized Hacks 24 | . 7 . . . . . 2 . . 1 6 4 . . . . 3 . . 1 Terminals 23 | . 7 . . . . . 2 . . 1 6 4 . . . . 3 . . . Assimilate 2 | . . . . . . . . . . . . . . . . . 2 . . . Botnet 11 | . 3 . . . . . 1 . . 1 3 2 . . . . 1 . . . Skim 10 | . 4 . . . . . 1 . . . 3 2 . . . . . . . . Fabricators . | . . . . . . . . . . . . . . . . . . . . . Repair Stations . | . . . . . . . . . . . . . . . . . . . . . Recycling Units . | . . . . . . . . . . . . . . . . . . . . . Scanalyzers . | . . . . . . . . . . . . . . . . . . . . . Garrison Access 1 | . . . . . . . . . . . . . . . . . . . . 1 Jam 1 | . . . . . . . . . . . . . . . . . . . . 1 Data Cores Recovered 1 | . . . . . . . . . . . . . . . . . 1 . . . Used . | . . . . . . . . . . . . . . . . . . . . . Hacking Detections 26 | . 3 . . . . . 2 2 2 3 4 3 . . . . 6 . . 1 Full Trace Events 5 | . . . . . . . . 1 . . 1 1 . . . . 1 . . 1 Feedback Events 1 | . . . . . . . . 1 . . . . . . . . . . . . Corruption 1 | . . . . . . . . 1 . . . . . . . . . . . . Feedback Blocked . | . . . . . . . . . . . . . . . . . . . . . Robot Schematics Acquired . | . . . . . . . . . . . . . . . . . . . . . Robots Built . | . . . . . . . . . . . . . . . . . . . . . Authchips . | . . . . . . . . . . . . . . . . . . . . . Time . | . . . . . . . . . . . . . . . . . . . . . Total Robot Build Rating . | . . . . . . . . . . . . . . . . . . . . . Part Schematics Acquired 4 | . . . . . . . . . . . . . . . 4 . . . . . Parts Built . | . . . . . . . . . . . . . . . . . . . . . Authchips . | . . . . . . . . . . . . . . . . . . . . . Time . | . . . . . . . . . . . . . . . . . . . . . Total Part Build Rating . | . . . . . . . . . . . . . . . . . . . . . Parts Repaired . | . . . . . . . . . . . . . . . . . . . . . Time . | . . . . . . . . . . . . . . . . . . . . . Parts Recycled . | . . . . . . . . . . . . . . . . . . . . . Recycled Matter . | . . . . . . . . . . . . . . . . . . . . . Retrieved Matter . | . . . . . . . . . . . . . . . . . . . . . Retrieved Components . | . . . . . . . . . . . . . . . . . . . . . Parts Scanalyzed . | . . . . . . . . . . . . . . . . . . . . . Part Schematics Acquired . | . . . . . . . . . . . . . . . . . . . . . Parts Damaged . | . . . . . . . . . . . . . . . . . . . . . Bothacking | -11 -10 -10 -9 -9 -9 -8 -8 -7 -6 -5 -5 -4 -4 -4 -4 -3 -3 -2 -2 -1 ------------ Run | Yrd Mat Min Mat Min Exi Min Mat Fac Fac Fac Ext Fac Upp Upp Zhi Pro Res Res DSF Acc Used RIF Installer . | . . . . . . . . . . . . . . . . . . . . . Robots Hacked . | . . . . . . . . . . . . . . . . . . . . . Non-combat . | . . . . . . . . . . . . . . . . . . . . . Combat . | . . . . . . . . . . . . . . . . . . . . . Robot Hacks Applied . | . . . . . . . . . . . . . . . . . . . . . Relay Couplers Released . | . . . . . . . . . . . . . . . . . . . . . Fabnet Peak Effective % . | . . . . . . . . . . . . . . . . . . . . . Robots Rewired . | . . . . . . . . . . . . . . . . . . . . . Allies Hacked . | . . . . . . . . . . . . . . . . . . . . . Hacks Repelled . | . . . . . . . . . . . . . . . . . . . . . Allies | -11 -10 -10 -9 -9 -9 -8 -8 -7 -6 -5 -5 -4 -4 -4 -4 -3 -3 -2 -2 -1 -------- Run | Yrd Mat Min Mat Min Exi Min Mat Fac Fac Fac Ext Fac Upp Upp Zhi Pro Res Res DSF Acc Total Allies 8 | . . . . . . . . . . . 6 . . . . . 2 . . . Largest Group 2 | . . . . . . . . . . . 2 1 . . . . 1 . . . Highest-Rated Group 159 | . . . . . . . . . . . 159 159 . . . . 45 . . . Highest-Rated Ally 159 | . . . . . . . . . . . 159 159 . . . . 45 . . . Total Orders . | . . . . . . . . . . . . . . . . . . . . . Ally Attacks 62 | . . . . . . . 9 . . . 53 . . . . . . . . . Total Damage 1956 | . . . . . . . 448 . . . 1508 . . . . . . . . . Kills 14 | . . . . . . . 2 . . . 12 . . . . . . . . . Allies Corrupted 1 | . . . . . . . . . . . . . . . . . 1 . . . Allies Melted 1 | . . . . . . . 1 . . . . . . . . . . . . . Turrets Deployed 2 | . . . . . . . 2 . . . . . . . . . . . . . Intel | -11 -10 -10 -9 -9 -9 -8 -8 -7 -6 -5 -5 -4 -4 -4 -4 -3 -3 -2 -2 -1 ------- Run | Yrd Mat Min Mat Min Exi Min Mat Fac Fac Fac Ext Fac Upp Upp Zhi Pro Res Res DSF Acc Active Infowar (turns) 5771 | . . . 156 15 141 347 391 144 235 583 489 186 648 455 421 545 475 226 31 283 Optics 4741 | . . . . . . . 308 144 235 583 484 186 648 455 421 545 475 226 31 . Terrain 2901 | . . . . . . . . . 32 . 154 186 645 398 421 520 96 162 4 283 Structural 647 | . . . . . . . 212 . 6 230 5 16 178 . . . . . . . Seismic 742 | . . . 156 15 141 347 83 . . . . . . . . . . . . . Decoding 2031 | . . . . . . . . . . . . . 622 455 421 533 . . . . Triangulation 131 | . . . . . . . . . 131 . . . . . . . . . . . ECM 698 | . . . . . . . . . . . . . . 133 24 541 . . . . Robot Analysis Total 5 | . . . . . . . 1 . . . . . . . 4 . . . . . Derelict Logs Recovered 4 | . . 2 . . . . . . . . . . 1 1 . . . . . . Drone Launches . | . . . . . . . . . . . . . . . . . . . . . Drone Recoveries . | . . . . . . . . . . . . . . . . . . . . . Exploration | -11 -10 -10 -9 -9 -9 -8 -8 -7 -6 -5 -5 -4 -4 -4 -4 -3 -3 -2 -2 -1 ------------- Run | Yrd Mat Min Mat Min Exi Min Mat Fac Fac Fac Ext Fac Upp Upp Zhi Pro Res Res DSF Acc Turns Passed 6312 | 39 129 107 169 15 141 347 508 144 235 595 590 186 648 455 421 545 475 226 32 305 Spaces Moved 6881 | 46 174 120 237 30 273 328 459 238 311 562 571 275 744 435 384 498 560 199 30 407 Core 6881 | 46 174 120 237 30 273 328 459 238 311 562 571 275 744 435 384 498 560 199 30 407 Treads . | . . . . . . . . . . . . . . . . . . . . . Legs . | . . . . . . . . . . . . . . . . . . . . . Wheels . | . . . . . . . . . . . . . . . . . . . . . Hover . | . . . . . . . . . . . . . . . . . . . . . Flight . | . . . . . . . . . . . . . . . . . . . . . Fastest Speed 50 | 50 50 50 50 50 50 50 50 50 50 50 50 50 50 50 50 50 50 50 100 50 Average Speed 67 | 54 50 66 58 50 50 82 85 50 50 64 50 50 76 92 90 61 67 85 103 59 Slowest Speed 250 | 100 50 100 100 50 50 100 150 50 50 100 100 50 150 150 100 200 150 150 150 250 Overloaded Moves . | . . . . . . . . . . . . . . . . . . . . . Propulsion Burnouts . | . . . . . . . . . . . . . . . . . . . . . Robots Hopped . | . . . . . . . . . . . . . . . . . . . . . Potential Cave-ins . | . . . . . . . . . . . . . . . . . . . . . Cave-ins Triggered . | . . . . . . . . . . . . . . . . . . . . . Exploration Rate (%) 38 | 3 40 23 43 9 61 79 43 5 10 23 72 11 91 66 88 61 21 8 46 15 Regions Visited 20 Branch Regions 9 Pre-discovered Areas 5 | . . . . . 1 . . . . . . . . 1 3 . . . . . Known Exits Taken 16 | . . 1 1 1 1 1 1 1 1 1 . 1 1 1 1 1 1 1 . . Unknown Exits Taken 3 | 1 1 . . . . . . . . . 1 . . . . . . . . . Scrap Searched 8 | . . 1 . . . 2 . . . . . . 4 . . 1 . . . . Spaces Dug 119 | . . 7 8 . . 2 13 3 5 17 4 5 . 12 . 7 17 7 . 12 Terrain Destroyed 419 | . . 45 81 . . 2 42 3 5 38 62 5 66 27 . 7 17 7 . 12 Melee 83 | . . . . . . 2 13 3 5 17 4 5 . 1 . 7 17 4 . 5 Projectile 10 | . . . . . . . . . . . . . . . . . . 3 . 7 AOE 326 | . . 45 81 . . . 29 . . 21 58 . 66 26 . . . . . . Terrain Rammed . | . . . . . . . . . . . . . . . . . . . . . Walls Destroyed . | . . . . . . . . . . . . . . . . . . . . . Machines Disabled . | . . . . . . . . . . . . . . . . . . . . . Actions | -11 -10 -10 -9 -9 -9 -8 -8 -7 -6 -5 -5 -4 -4 -4 -4 -3 -3 -2 -2 -1 --------- Run | Yrd Mat Min Mat Min Exi Min Mat Fac Fac Fac Ext Fac Upp Upp Zhi Pro Res Res DSF Acc Total 8134 | 55 192 140 251 29 277 389 525 250 355 749 849 298 817 467 434 723 617 236 31 450 Wait 746 | 1 1 5 1 . . 53 16 1 9 135 231 6 57 8 11 195 6 4 . 6 Move 6860 | 45 173 119 236 29 272 327 458 237 310 561 570 274 743 434 383 497 559 198 29 406 Hop . | . . . . . . . . . . . . . . . . . . . . . Pick Up 36 | 2 4 2 1 . 3 . 1 2 4 2 3 . . 2 4 2 2 1 . 1 Fast Attach 78 | 2 2 3 . . . 1 7 2 6 9 5 6 5 2 7 1 6 12 . 2 Attach 44 | 1 . . 2 . 1 . 1 1 . 2 4 . . 4 2 5 8 4 . 9 Detach 41 | 1 . 1 . . . . 1 . 1 4 2 . 2 2 2 5 8 4 1 7 Swap 20 | . . 1 2 . . . 3 . 2 2 1 . 1 3 3 . . 1 . 1 Drop 41 | 1 . 3 . . 1 . 8 . 2 4 2 . 3 . 8 5 2 1 1 . Fire 63 | 2 12 6 9 . . . 3 . . 2 3 . 5 7 . . . 3 . 11 Melee 187 | . . . . . . 8 27 7 21 27 11 12 1 5 14 13 26 8 . 7 Ram 1 | . . . . . . . . . . 1 . . . . . . . . . . Kick . | . . . . . . . . . . . . . . . . . . . . . Crush . | . . . . . . . . . . . . . . . . . . . . . Escape Stasis 17 | . . . . . . . . . . . 17 . . . . . . . . . Rewire . | . . . . . . . . . . . . . . . . . . . . . Trap . | . . . . . . . . . . . . . . . . . . . . . Miscellaneous . | . . . . . . . . . . . . . . . . . . . . . Route ------- -11/Scrapyard -10/Materials -10/Mines -9/Materials (discovered 2 exits: Mat / *Min) -9/Mines -9/Exiles (discovered 2 exits: *Min x2) -8/Mines -8/Materials -7/Factory (discovered 5 exits: *Fac / Sto x2 / Low x2) -6/Factory (discovered 3 exits: *Fac / Low x2) -5/Factory (discovered 4 exits: Upp x2 / *Ext x2) -5/Extension (discovered 2 exits: *Fac / [*Cet]) -4/Factory (discovered 2 exits: *Upp x2) -4/Upper Caves -4/Upper Caves -4/Zhirov -3/Proximity Caves -3/Research (discovered 4 exits: *Res / Arm / Tes x2) -2/Research -2/DSF -1/Access To Epsilon Eridani History --------- Turn | Location | Event 4 | -11/Scrapyard | Discovered new exit (range 15) 40 | -11/Scrapyard | Entered Materials 161 | -10/Materials | Discovered new exit (range 16) 169 | -10/Materials | Entered Mines 188 | -10/Mines | Learned Materials trap positions 217 | -10/Mines | Learned location of 1 exit from Materials 219 | -10/Mines | Found DCF Scrap (15 items) 255 | -10/Mines | Discovered new exit (range 10) 260 | -10/Mines | Identified exit to Materials 266 | -10/Mines | Received a Rocket Launcher from a helpful Derelict 276 | -10/Mines | Entered Materials 276 | -9/Materials | Evolved 2 slots: Utility x2 277 | -9/Materials | Identified exit to Materials 278 | -9/Materials | Loaded intel: 19 trap records 310 | -9/Materials | Build established: Mutant 441 | -9/Materials | Discovered new exit (range 6) 443 | -9/Materials | Identified exit to Mines 445 | -9/Materials | Entered Mines 458 | -9/Mines | Deemed a non-threat by the Exiles lab entrance 458 | -9/Mines | Discovered new exit (range 5) 460 | -9/Mines | Identified exit to Exiles 460 | -9/Mines | Entered Exiles 468 | -9/Exiles | Discovered new exit (range 15) 473 | -9/Exiles | Met 8R-AWN 480 | -9/Exiles | Met EX-HEX 495 | -9/Exiles | Met EX-BIN 502 | -9/Exiles | Aligned with FarCom system 502 | -9/Exiles | Given EX-Vault access code 515 | -9/Exiles | Opened EX-Vault 519 | -9/Exiles | Found Deploy-a-Sentry 522 | -9/Exiles | Found Deploy-a-Sentry 524 | -9/Exiles | Found Deploy-a-Sentry 535 | -9/Exiles | Warned to stay clear of 0b10 Research branches 549 | -9/Exiles | Met EX-DEC 554 | -9/Exiles | Learned location of Zion (-7) 568 | -9/Exiles | Discovered new exit (range 12) 601 | -9/Exiles | Identified exit to Mines 601 | -9/Exiles | Left Exiles lab with Deploy-a-Sentry 601 | -9/Exiles | Entered Mines 644 | -8/Mines | Found a Scrap Suit stashed away for nefarious purposes 941 | -8/Mines | Discovered exit to Materials (range 9) 948 | -8/Mines | Entered Materials 948 | -8/Materials | Evolved 2 slots: Utility x2 1427 | -8/Materials | Discovered new exit (range 14) 1432 | -8/Materials | Core integrity fell below 50% 1435 | -8/Materials | DAS Turret deployed 1437 | -8/Materials | DAS Turret deployed 1455 | -8/Materials | Core integrity fell below 20% 1456 | -8/Materials | Identified exit to Factory 1456 | -8/Materials | Entered Factory 1456 | -7/Factory | Evolved 2 slots: Utility x2 1466 | -7/Factory | Lost 3 parts (1p1u1w) 1515 | -7/Factory | Identified exit to Storage 1515 | -7/Factory | Identified exit to Lower Caves 1561 | -7/Factory | Discovered new exit (range 5) 1563 | -7/Factory | Identified exit to Factory 1600 | -7/Factory | Entered another Factory area 1600 | -6/Factory | Evolved 2 slots: Utility x2 1697 | -6/Factory | Identified exit to Lower Caves 1779 | -6/Factory | Discovered new exit (range 20) 1834 | -6/Factory | Identified exit to Factory 1835 | -6/Factory | Entered another Factory area 1835 | -5/Factory | Evolved 2 slots: Utility x2 2326 | -5/Factory | Identified exit to Upper Caves 2326 | -5/Factory | Identified exit to Extension 2430 | -5/Factory | Entered Extension 2669 | -5/Extension | Rescued a captive Derelict 2685 | -5/Extension | Rescued a captive Derelict 2685 | -5/Extension | Rescued a captive Derelict 2722 | -5/Extension | Build established: Hacker-Scout 2745 | -5/Extension | Core integrity fell below 50% 2779 | -5/Extension | Spotted B-75 Beast 2785 | -5/Extension | Spotted B-75 Beast 2789 | -5/Extension | Core integrity fell below 20% 2807 | -5/Extension | Rescued a captive Derelict 2808 | -5/Extension | Rescued a captive Derelict 2825 | -5/Extension | Lost 8 parts (1p6u1w) 2829 | -5/Extension | Energy Cycler disabled 2834 | -5/Extension | Rescued a captive Derelict 2862 | -5/Extension | Rescued A7 3015 | -5/Extension | Discovered new exit (range 10) 3015 | -5/Extension | Discovered new exit (range 6) 3020 | -5/Extension | Entered Factory 3020 | -4/Factory | Accompanied by 1 ally (A7) 3020 | -4/Factory | Evolved 2 slots: Utility x2 3057 | -4/Factory | Identified exit to Upper Caves 3206 | -4/Factory | Entered Upper Caves 3225 | -4/Upper Caves | Learned 4 Research zone layouts 3226 | -4/Upper Caves | Found DCF Scrap (12 items) 3339 | -4/Upper Caves | Spotted B-86 Titan 3415 | -4/Upper Caves | Lost 3 parts (1p2u) 3465 | -4/Upper Caves | Encountered a Warlord checkpoint 3811 | -4/Upper Caves | Discovered new exit (range 12) 3816 | -4/Upper Caves | Attracted the attention of an 0b10 checkpoint 3854 | -4/Upper Caves | Identified exit to Upper Caves 3854 | -4/Upper Caves | Entered another Upper Caves area 4053 | -4/Upper Caves | Learned location of Testing (-3) 4275 | -4/Upper Caves | Discovered new exit (range 10) 4288 | -4/Upper Caves | Found Alien Artifact 4308 | -4/Upper Caves | Identified exit to Zhirov 4309 | -4/Upper Caves | Entered Zhirov 4309 | -4/Zhirov | Discovered new exit (range 3) 4327 | -4/Zhirov | Met Zhirov 4345 | -4/Zhirov | Learned location of Quarantine (-2) 4345 | -4/Zhirov | Learned location of Command (-1) 4354 | -4/Zhirov | Zhirov requested help retrieving the SGEMP Prototype 4365 | -4/Zhirov | Build established: Scavenger-Assassin 4369 | -4/Zhirov | Found Alien Artifact 4369 | -4/Zhirov | Identified Integrated Reactor 4369 | -4/Zhirov | Installed Integrated Reactor, increased core energy generation (+10) 4430 | -4/Zhirov | Found Alien Artifact 4566 | -4/Zhirov | Identified exit to Proximity Caves 4579 | -4/Zhirov | Cloak Generator disabled 4579 | -4/Zhirov | Attacked by Zhirov 4589 | -4/Zhirov | Enhanced Grunts warped into view 4593 | -4/Zhirov | Zhirov warped through subspace 4603 | -4/Zhirov | Zhirov detonated his lab 4730 | -4/Zhirov | Entered Proximity Caves 4733 | -3/Proximity Caves | Spotter reported a threat 4825 | -3/Proximity Caves | Spotter reported a threat 5249 | -3/Proximity Caves | Attracted the attention of an 0b10 checkpoint 5266 | -3/Proximity Caves | Discovered new exit (range 16) 5273 | -3/Proximity Caves | Identified exit to Research 5275 | -3/Proximity Caves | Entered Research 5275 | -3/Research | Evolved 2 slots: Utility x2 5303 | -3/Research | Lost 5 parts (5u) 5438 | -3/Research | Identified exit to Armory 5438 | -3/Research | Identified exit to Testing 5446 | -3/Research | Spotted B-86 Titan 5739 | -3/Research | Lost 5 parts (5u) 5744 | -3/Research | Discovered new exit (range 13) 5749 | -3/Research | Identified exit to Research 5750 | -3/Research | Entered another Research area 5750 | -2/Research | Evolved 2 slots: Utility x2 5962 | -2/Research | Found Prototype Processor 5962 | -2/Research | Identified Exp. Target Analyzer 5976 | -2/Research | Identified exit to DSF 5976 | -2/Research | Entered DSF 5989 | -2/DSF | Discovered new exit (range 20) 6007 | -2/DSF | Identified exit to Access 6008 | -2/DSF | Entered Access 6008 | -1/Access | Evolved 2 slots: Utility x2 6198 | -1/Access | Discovered new exit (range 23) 6286 | -1/Access | Spotted B-99 Colossus 6287 | -1/Access | Spotted B-99 Colossus 6297 | -1/Access | Core integrity fell below 50% 6310 | -1/Access | Identified exit to Surface 6313 | *** | Escaped! Last Messages --------------- 06296_ Penetrated by Slug. 06296_ Slug penetrates B-99 Colossus. 06296_ Penetrated by Slug. 06296_ Slug penetrates Sealed Heavy Doors. 06300_ B-99 Colossus activates siege mode. 06300_ Graphene Brace destroyed. 06300_ Penetrated by Slug. 06300_ Slug penetrates Sealed Heavy Doors. 06300_ Penetrated by Slug. 06300_ Slug penetrates Sealed Heavy Doors. 06303_ Knocked back. 06303_ Penetrated by Slug. 06303_ Slug penetrates Reinforced Barrier. 06303_ Penetrated by Slug. 06303_ Slug penetrates Reinforced Barrier. 06303_ Main Access Shell breached. 06304_ Acquired 4 matter. 06310_ EXIT=IDENTIFIED: SURFACE [Achievement: Inspector Gadget] [Achievement: The Little Core That Could] Map ----- +----------------------------------------------------+ | "?"" ?############# ? ############ ## ? | | """" ? ### ??? ?### ############ #? | | """" ?#?? ?? ### ? ############ ##? ? | | ""?" ##? #?# ######?##### ########## | | "?"?? ###?? ?? ?##? ##?####?#?## ##### | | ?? ### ?""" ??# #########?## ##### | | ? ?## ?""" # ? #?########## ##### ### | | ? ### ? " ### ###?######## ##### ## | | ?? ### ? #?# ? ############ ##?## ## | | ### ?? #################### ##### ## | | #+####+########+###################### ##### ##" | | g ##" | | ##" | | #####+#########+##### ""############"#####" | | # ### ""######### #" | | # #?# ""######### #? | | # " ### T###?#?### = # | | # """ ### ""##?###### = # | | = # """ ### ""#####??## = # | | = # " ### ""######### ## | | = # ##""""""""""""######## ## | | # ! ### #######?# ## | | ###########?# ######### ]## | | ##?###?######? """""" ##??###########"##? | | ##?#?##?##?##? " " ##############"#### | | #?########?## " @" " ### + | | #########?########?## " "" " ### # | | ??################### " " ### # | | ##########?#?######## """"" ###? # | | ?######?#??#?####?### ##? ? # | | ###?##?##############""""""" ""### + | | ###???###??#?########"""""" """### ?? # """ " | | ######?#?###?########"""""%""""### ? # """G" | | ###########??####?###""""%"""""#?# ? ########### | | ?#??##?#????######### % ###? ???####?###?## | | ?#?###?????#?######## BB %%BB #?# ? ? ##??####### | | ???######?########### BB % BB ### #??##?##### | | ??###???#?##?###???## ##?###?#?###?###### | | ?????#?###?####?#???# %#?#####?###?#?#?#?# | | ??##??#??##??#?##???# ####???####?##??### | | ???#?#???##?#?###??## %#?####?##????##?# | | #??????#?????#?##?#?#### ""####?###?###???### | | ??????? ?? ??? ??????# % # #?####?###??#?##?# | | ????????? ? ??? ?????? # "###############??## | | ?????????"?"? ? ?? ? # ######## | | ????????????? ?? ? ??+ # | | ????????"? ???? ? ? # # | | ????????? ?? ??? ??? # # "" | | ?????????? ???? ? ? # ###+###### # """** | | ??????#????????????###?# # ???? ?## # ""** | +----------------------------------------------------+ Best States ------------- Heat Dissipation 52 Energy Generation 31 Energy Capacity 250 Matter Stores 300 Matter Capacity 300 Sight Range 22 Terrain Scan Range 24 Terrain Scan Density 385 ECM Strength 1 Additional Mass Support 9 Corruption Containment 8 Corruption Block 17 Armor Coverage 150 Power Shielding 90 Evasion (%) 50 Targeting Accuracy 14 Melee Accuracy 29 Target Analysis 10 Core Analysis 6 Armor Integrity Analysis 40 Offensive Hacking 30 Defensive Hacking 24 Authchip Count 6 Item Schematics ----------------- Assault Drone Bay | -4/Zhirov | Free Exp. Heat Sink | -4/Zhirov | Free Exp. Optical Array | -4/Zhirov | Free Imp. Arc Thrower | -4/Zhirov | Free Robot Schematics ------------------ None Fabricated ------------ Nothing Repaired ---------- Nothing Alien Tech Used ----------------- Integrated Reactor Achievements -------------- Exposed Inspector Gadget The Little Core That Could Challenges ------------ None Game ------ Seed HackingGrenadeMallet Manual? 0 Play Time 01:26:29 Cumulative 297.3 hours Start 2025.06.12 @ 05:09:59 End 2025.06.12 @ 07:03:59 Sessions 1 Manual Loads 0 Difficulty Rogue Special Mode None Game No. 156 Rogue 148 Adventurer 8 Explorer 0 Win Type 0 Total 16 Types 9/0/2/2/0/0/1/0/1/1 Lore% 88 Gallery% 87 Achievement% 81 Wizard Run 0 Options --------- Layout 2 ASCII 0 Keyboard 1 Movement Numpad Keybinds 1 Fullscreen 1 Font 24/Smallcaps Map View 50x44 Zoom Use 0% Tactical HUD 1 Map Filters SATURATION(78)|BRIGHTNESS(110) Filters SHIFT_HUE(220) Steam 1 RUN: d63c9433-21e3-487e-af3d-c483a6c3cda8